Cogmind - Beta 15 @@@ ROGUE MODE // 2025.08.24 @ 14:05:56 Player: saltine Result: Destroyed by P-80 Master with Gamma Rifle Performance ------------- Evolutions (7) 3500 Regions Visited (22) 4400 Robots Destroyed (232) 1160 Value Destroyed (8902) 8902 Prototype IDs (87) 1740 Alien Tech Used (4) 800 Bonus (2704) 2704 TOTAL SCORE: 23206 Bonus ------- High Alert Combat Kills 1358 Follower Combat Kills 3679 Awakened Behemoth Slayer 1000 Network Hubs Disabled 200 Met Imprinter 300 Was Imprinted 300 Built Enhanced Grunts 300 Met R17 at Cetus 500 Found Hidden Lab 3000 Used Core Reset Matrix 3000 Friendly Fire -10933 Cogmind --------- Core Integrity 0/1300 Matter 247/300 Energy 12/700 System Corruption 15% Temperature Cool (0) Movement Core (100) Ox1 Location -3/Testing Parts ------- > --- POWER (2) -------- (None) > --- PROPULSION (6) --- Enhanced Flexi-carbon Leg Enhanced Flexi-carbon Leg Enhanced Flexi-carbon Leg Enhanced Flexi-carbon Leg Enhanced Flexi-carbon Leg > --- UTILITY (9) ------ Experimental Energy Well Experimental Terrain Scan Processor Graphene Brace > --- WEAPON (4) ------- CR-A16's Behemoth Slayer > --- INVENTORY (5) ---- Heavy Regenerative Plating NK-0LA's Tesla Doomcannon Advanced Micro-nuke Launcher Peak State ------------ > --- POWER ------------ Quantum Reactor Light Quantum Reactor > --- PROPULSION ------- Enhanced Flexi-carbon Leg Enhanced Biometal Leg Enhanced Biometal Leg Centrium Leg Centrium Leg Centrium Leg > --- UTILITY ---------- Experimental Heat Sink Advanced Cooling System High-capacity Storage Unit Experimental Terrain Scanner Experimental Terrain Scan Processor Advanced Targeting Computer Advanced Transmission Jammer Heavy Regenerative Plating > --- WEAPON ----------- Enhanced Nova Cannon Enhanced Hardcell Cannon Enhanced Hardcell Cannon CR-A16's Behemoth Slayer > --- INVENTORY -------- Graviton Reactor Quantum Reactor Enhanced Flexi-carbon Leg Experimental Heat Sink Experimental Energy Well Experimental Energy Well Matter Compressor Advanced Powered Armor Advanced Force Field Quantum Router Hacking Drone Bay Transdimensional Reconstructor Core Reset Matrix Proton Burst Cannon NK-0LA's Tesla Doomcannon Hypervelocity Mass Driver Tiamat Missile Launcher Multitool [Rating: 179] Favorites ----------- Power Antimatter Reactor Engine Ion Engine Power Core Constructs Reactor Antimatter Reactor Propulsion Enhanced Flexi-carbon Leg Treads Light Treads Leg Enhanced Flexi-carbon Leg Wheel Constructs Flight Unit Improved Flight Unit Utility High-capacity Storage Unit Device Seismic Detector Storage High-capacity Storage Unit Processor Advanced Targeting Computer Hackware Hacking Suite Protection Advanced Powered Armor Weapon Bore Cannon Energy Gun EM Pulse Gun Energy Cannon Cooled Phase Cannon Ballistic Gun Enhanced Autogun Ballistic Cannon Bore Cannon Launcher Grenade Launcher Special Weapon Mining Laser Piercing Weapon CR-A16's Behemoth Slayer Special Melee Weapon Advanced Datajack Build | -11 -10 -10 -8 -8 -8 -6 -6 -6 -6 -6 -6 -5 -5 -5 -5 -5 -5 -4 -4 -4 -3 -3 ------- Run | Yrd Mat Sub Mat Sto Rec Fac Was Fac Low Low Zio Pro Fac Ext Cet Arc Hub Fac Arm Lab Res Tes Slots Evolved 14 | . . . 4 . . 4 . . . . . . 2 . . . . 2 . . 2 . Power 1 | . . . . . . . . . . . . . 1 . . . . . . . . . Propulsion 4 | . . . 1 . . 2 . . . . . . . . . . . . . . 1 . Utility 7 | . . . 2 . . 2 . . . . . . . . . . . 2 . . 1 . Weapon 2 | . . . 1 . . . . . . . . . 1 . . . . . . . . . Parts Attached 188 | 7 2 9 10 27 7 10 12 4 1 . 5 8 4 5 7 8 5 9 25 1 14 8 Power 18 | 1 . 1 1 1 . 1 1 . . . . . 2 1 . 2 . . 3 . 4 . Engine 6 | 1 . 1 1 1 . 1 . . . . . . 1 . . . . . . . . . Core . | . . . . . . . . . . . . . . . . . . . . . . . Reactor 12 | . . . . . . . 1 . . . . . 1 1 . 2 . . 3 . 4 . Propulsion 40 | 2 . 2 3 8 . . 2 1 . . . 4 1 1 . 1 3 . 5 . 1 6 Treads 17 | 2 . 2 3 7 . . 2 1 . . . . . . . . . . . . . . Leg 22 | . . . . . . . . . . . . 4 1 1 . 1 3 . 5 . 1 6 Wheel . | . . . . . . . . . . . . . . . . . . . . . . . Hover . | . . . . . . . . . . . . . . . . . . . . . . . Flight 1 | . . . . 1 . . . . . . . . . . . . . . . . . . Utility 67 | 2 1 2 4 3 5 3 5 3 1 . 2 3 . 1 6 4 . 8 4 1 8 1 Device 32 | 1 . 1 1 2 2 1 2 . . . . 1 . . 2 2 . 7 2 1 6 1 Storage 7 | 1 1 . . . 1 . . . . . . 1 . . . 1 . 1 . . 1 . Processor 4 | . . . . . . 1 . 1 1 . 1 . . . . . . . . . . . Hackware 3 | . . . . . . . . 1 . . . . . . . . . . 2 . . . Protection 21 | . . 1 3 1 2 1 3 1 . . 1 1 . 1 4 1 . . . . 1 . Artifact . | . . . . . . . . . . . . . . . . . . . . . . . Weapon 63 | 2 1 4 2 15 2 6 4 . . . 3 1 1 2 1 1 2 1 13 . 1 1 Energy Gun 14 | 2 . 1 1 7 . . . . . . . . 1 1 1 . . . . . . . Energy Cannon 14 | . . 1 . 1 1 2 1 . . . . 1 . . . . 2 . 5 . . . Ballistic Gun 7 | . . . 1 5 . 1 . . . . . . . . . . . . . . . . Ballistic Cannon 12 | . . 1 . . . 1 3 . . . . . . . . . . . 6 . 1 . Launcher 9 | . 1 . . 1 . 2 . . . . 1 . . . . . . 1 2 . . 1 Special Weapon 4 | . . 1 . 1 1 . . . . . 1 . . . . . . . . . . . Impact Weapon . | . . . . . . . . . . . . . . . . . . . . . . . Slashing Weapon . | . . . . . . . . . . . . . . . . . . . . . . . Piercing Weapon 2 | . . . . . . . . . . . 1 . . 1 . . . . . . . . Special Melee Weapon 1 | . . . . . . . . . . . . . . . . 1 . . . . . . Unidentified Prototypes 39 | . . . . 11 2 . 2 . 1 . 3 3 1 3 3 2 . 1 1 2 2 2 Corrupted Parts 2 | . . . . . . . . . . . . . . . . 2 . . . . . . System Corruption 3 | . . . . . . . . . . . . . . . . 3 . . . . . . Parts Lost 55 | . . 3 4 . . 20 . . 1 . . . . 1 . . . 1 5 . 19 1 Power 7 | . . . 1 . . 2 . . . . . . . 1 . . . . . . 3 . Propulsion 16 | . . 2 2 . . 3 . . . . . . . . . . . . . . 8 1 Utility 16 | . . . 1 . . 8 . . . . . . . . . . . 1 2 . 4 . Weapon 16 | . . 1 . . . 7 . . 1 . . . . . . . . . 3 . 4 . Highest Loss Streak 20 | . . 2 3 . . 20 . . 1 . . . . 1 . . . 1 4 . 7 1 To Critical Strikes 1 | . . . . . . . . . . . . . . . . . . . . . 1 . Average Backups 18 | 3 11 17 17 18 21 16 8 17 20 20 17 16 16 17 19 19 19 18 18 16 17 2 Power 1 | . 1 1 . . . . . 2 2 2 1 1 2 2 1 2 2 2 1 2 1 . Propulsion 2 | 1 2 3 3 5 5 . . . . 1 . . . . . . 2 2 2 2 . . Utility 7 | . 4 6 4 4 7 7 3 5 7 7 7 7 7 8 8 9 10 9 7 6 9 . Weapon 6 | . 3 5 7 5 6 7 3 9 9 8 7 7 6 6 8 7 4 3 4 4 2 2 Tool/Special . | . . . . . . . . . . . . . . . . . . . . . . . Unused Backups 60 | . . 4 . 8 10 9 . . 2 . 6 3 . . 2 4 . 2 1 . 8 1 Power 4 | . . 1 . . 1 . . . . . . . . . 1 . . . . . 1 . Propulsion 13 | . . 1 . 3 1 6 . . . . 1 1 . . . . . . . . . . Utility 26 | . . 2 . 4 5 1 . . . . . 1 . . 1 3 . 1 1 . 7 . Weapon 17 | . . . . 1 3 2 . . 2 . 5 1 . . . 1 . 1 . . . 1 Tool/Special . | . . . . . . . . . . . . . . . . . . . . . . . Average Slot Usage (%) 88 | . 100 99 97 99 80 50 60 84 86 86 85 86 86 99 83 85 100 99 98 99 88 38 Engine 4 | . 14 14 8 9 8 1 2 . . . . . . 3 . . . . . . . . Reactor 4 | . . . . . . . 2 6 6 6 6 6 5 6 11 11 11 10 9 10 8 . Treads 12 | . 28 27 26 27 15 1 11 17 20 20 20 19 . . . . . . . . . . Leg 9 | . . . . . . . . . . . . . 23 29 29 28 29 26 26 26 25 20 Device 11 | . 14 13 9 16 16 23 6 6 6 6 1 5 10 5 5 5 6 14 18 20 17 4 Storage 7 | . 14 14 9 9 9 5 3 6 6 6 6 6 5 5 5 5 5 5 5 5 4 4 Processor 6 | . . . . . . . 6 6 9 13 17 19 11 11 11 11 11 10 10 10 8 4 Protection 7 | . . . 15 10 5 . 7 12 13 13 13 7 5 10 11 10 9 10 6 5 3 1 Energy Gun 2 | . 25 4 7 12 . . 7 . . . . . . . 3 . . . . . . . Energy Cannon 4 | . . 13 9 . . . 1 6 6 6 5 6 11 11 . 2 11 10 7 5 . . Ballistic Gun 4 | . . . 8 13 17 . . . . . . . . . . . . . . . . . Ballistic Cannon 5 | . . 2 . . 2 5 7 13 13 13 11 10 8 10 . 1 5 7 8 10 12 . Special Weapon 1 | . . 7 . . . . . . . . . . . . 1 . . . . . . . Peak Build Rating 179 | 7 8 12 21 37 54 66 86 88 90 90 100 100 112 118 118 129 129 143 157 164 179 94 Average Rating 78 | 5 7 10 18 32 44 56 62 85 89 89 93 96 102 112 112 108 129 141 151 159 162 72 On Entrance 77 | . 7 8 12 21 37 49 4 86 88 90 90 95 95 112 117 118 129 129 142 157 164 28 Naked Turns . | . . . . . . . . . . . . . . . . . . . . . . . Heaviest Build 165 | 15 51 57 69 70 117 113 118 111 110 110 110 110 121 131 113 126 124 141 149 136 165 26 Greatest Support 178 | 40 40 40 60 66 63 45 145 175 175 175 175 175 127 136 136 136 136 136 148 150 178 168 Greatest Overweight (x) 31 | . 1 1 1 1 2 2 2 . . . . . 1 1 . 31 . 1 1 . 1 1 Average Overweight (x) . | . . 1 1 . 1 1 . . . . . . . . . 4 . . . . . . Largest Inventory Capacity 25 | 8 20 20 20 20 25 25 20 20 20 20 20 20 20 20 20 20 20 20 20 20 20 5 Average Capacity 20 | 7 14 20 20 20 24 24 15 20 20 20 20 20 20 20 20 20 20 20 20 20 19 5 Most Carried 25 | 5 17 20 20 20 25 25 15 20 20 20 20 20 20 20 20 20 20 20 20 20 20 5 Average Carried 19 | 3 11 19 18 19 23 16 8 17 19 19 19 19 19 20 19 19 20 19 19 18 18 4 Final Capacity 25 | 8 20 20 20 20 25 5 20 20 20 20 20 20 20 20 20 20 20 20 20 20 5 5 Final Carried 25 | 5 17 20 19 20 25 5 15 20 20 20 20 20 20 20 20 20 20 20 17 20 5 5 Scrap Engine Consumption 43 | . . . . . 33 10 . . . . . . . . . . . . . . . . Constructs Created 3 | . . . . . 3 . . . . . . . . . . . . . . . . . Constructs Modified 15 | . . . . . 5 10 . . . . . . . . . . . . . . . . Class Distribution -------------------- 31% | Tank 10% | Scavenger-Tank 10% | Scavenger-Mutant 8% | Messiah-Mutant 7% | Scavenger-Skirmisher 6% | Mutant 6% | Commander-Construct 4% | Scavenger-Gunner 4% | Messiah-Gunner 3% | Construct Dominant Class ---------------- Mutant | -10/Materials Scavenger-Mutant | -10/Subcaves Scavenger-Tank | -8/Materials Tank | -8/Storage Tank | -8/Recycling Commander-Construct | -6/Factory Tank | -6/Waste Tank | -6/Factory Tank | -6/Lower Caves Tank | -6/Lower Caves Tank | -6/Zion Tank | -5/Proximity Caves Scavenger-Skirmisher | -5/Factory Scavenger-Tank | -5/Extension Scavenger-Tank | -5/Cetus Messiah-Mutant | -5/Archives Messiah-Gunner | -5/Hub_04(d) Messiah-Tank | -4/Factory Scavenger-Gunner | -4/Armory Scavenger-Skirmisher | -4/Lab Scavenger-Skirmisher | -3/Research Mutant | -3/Testing Resources | -11 -10 -10 -8 -8 -8 -6 -6 -6 -6 -6 -6 -5 -5 -5 -5 -5 -5 -4 -4 -4 -3 -3 ----------- Run | Yrd Mat Sub Mat Sto Rec Fac Was Fac Low Low Zio Pro Fac Ext Cet Arc Hub Fac Arm Lab Res Tes Matter Collected 9186 | 212 173 288 153 466 301 . 481 121 165 392 147 643 50 378 389 828 92 390 2105 . 1412 . Remotely . | . . . . . . . . . . . . . . . . . . . . . . . Salvage Created 9257 | 69 294 439 420 789 313 571 . 136 46 338 . 428 225 546 215 290 399 565 1845 . 1329 . Parts 526 | 4 23 25 31 44 14 51 . 5 3 11 . 27 2 34 17 29 22 25 91 . 68 . Haulers Intercepted 13 | . 2 . . 6 . . . 1 . . . . 3 . . . 1 . . . . . Recyclers Shooed 7 | 1 1 . . 2 1 . . . . . . . . 1 . . . . . . 1 . Parts Field Recycled . | . . . . . . . . . . . . . . . . . . . . . . . Retrieved Matter . | . . . . . . . . . . . . . . . . . . . . . . . Parts Self-Destructed 55 | . . 17 . . . . . . 11 10 3 14 . . . . . . . . . . Prevented 1 | . . . . . . . . . . . . 1 . . . . . . . . . . Kills | -11 -10 -10 -8 -8 -8 -6 -6 -6 -6 -6 -6 -5 -5 -5 -5 -5 -5 -4 -4 -4 -3 -3 ------- Run | Yrd Mat Sub Mat Sto Rec Fac Was Fac Low Low Zio Pro Fac Ext Cet Arc Hub Fac Arm Lab Res Tes Combat Hostiles Destroyed 158 | . 6 10 14 5 1 12 . . 1 6 . 3 . 5 2 . 1 13 50 . 29 . Melee 8 | . . . . . . . . . . . . . . 1 . . 1 . 1 . 5 . Guns 13 | . 3 . 4 4 1 . . . . . . . . . 1 . . . . . . . Cannons 83 | . . 9 2 . . 8 . . 1 6 . 3 . 3 . . . 10 21 . 20 . AOE 47 | . 3 . 7 . . 4 . . . . . . . 1 . . . 3 25 . 4 . Classes Destroyed 22 | 2 4 3 1 2 . 4 . . . . . 2 . 2 . . . . 2 . . . Worker 14 | . 2 . 2 1 . . . 1 . . . . . . . . 5 1 . . 2 . Builder 12 | . . . 1 2 3 4 . . . . . . . . . . 2 . . . . . Tunneler 4 | 1 . . . 1 . 2 . . . . . . . . . . . . . . . . Hauler 13 | . 2 . . 6 . . . 1 . . . . 3 . . . 1 . . . . . Recycler 7 | 1 . . 1 2 1 . . . . . . . . . . . 1 . . . 1 . Minesweeper 1 | . . . . . . . . . . . . 1 . . . . . . . . . . Mechanic 2 | . . . . . . . . . . . . . . . . . . . 2 . . . Operator 8 | . . . . 1 . . . 1 . . . . . . . 5 1 . . . . . Watcher 3 | . . . . . . . . . . . . . . 1 . . . . 2 . . . Swarmer 52 | . 3 1 8 . . 3 . . . 2 . 1 . . . . 1 6 12 . 15 . Saboteur 4 | . . . . . . . . . . . . . . . . . . . 4 . . . Grunt 40 | . 3 . 4 3 . 2 . . . 4 . . . 3 . . . 3 13 . 5 . Brawler 1 | . . . . . . . . . . . . 1 . . . . . . . . . . Duelist 4 | . . . . 1 . . . . 1 . . . . 1 . . . . 1 . . . Protector 1 | . . . . . . 1 . . . . . . . . . . . . . . . . Sentry 12 | . . 1 2 1 . . . . . . . 1 . . . . . 1 3 . 3 . Specialist 14 | . . . . . . 3 . . . . . . . . . . . . 9 . 2 . Hunter 3 | . . . . . . 1 . . . . . . . . . . . 2 . . . . Programmer 15 | . . . . . . 2 . . . . . . . . . . . 1 8 . 4 . Behemoth 1 | . . . . . . . . . . . . . . 1 . . . . . . . . Cetus Guard 2 | . . . . . . . . . . . . . . . 2 . . . . . . . Enhanced Grunt 2 | . . . . . . . . . . . . 2 . . . . . . . . . . Artisan 2 | . . 2 . . . . . . . . . . . . . . . . . . . . Subdweller 8 | . . 8 . . . . . . . . . . . . . . . . . . . . Thug 2 | . . . . . . . . . . 2 . . . . . . . . . . . . Guerrilla 4 | . . . . . . . . . . . . . . 4 . . . . . . . . Best Kill Streak 11 | 2 6 2 6 4 3 11 . 1 1 4 . 2 2 1 1 1 8 5 8 . 6 . Combat Bots Only 7 | . 3 2 5 3 1 7 . . 1 4 . 2 . 1 1 . 1 4 7 . 5 . Max Kills in Single Turn 6 | 1 3 1 2 2 1 3 . 1 1 2 . 1 2 1 1 1 6 3 5 . 3 . Gunslinging . | . . . . . . . . . . . . . . . . . . . . . . . Exploded 5 | . 2 . 2 . . 2 . . . . . . . 1 . . . 3 5 . 2 . Melee 1 | . . . . . . . . . . . . . . 1 . . 1 . 1 . 1 . Uniques/NPCs Destroyed 3 | . . . . . 1 . . . . . . . . . 1 1 . . . . . . 01-MTF (-8/Recycling) A7 (-5/Cetus) NK-0LA (-5/Archives) Combat | -11 -10 -10 -8 -8 -8 -6 -6 -6 -6 -6 -6 -5 -5 -5 -5 -5 -5 -4 -4 -4 -3 -3 -------- Run | Yrd Mat Sub Mat Sto Rec Fac Was Fac Low Low Zio Pro Fac Ext Cet Arc Hub Fac Arm Lab Res Tes Hostile Shots Fired 1814 | . 22 52 67 17 15 309 . 8 . 35 . 3 . 54 16 5 16 138 446 . 546 65 Missed 608 | . 4 14 24 7 4 94 . 4 . 15 . 1 . 24 2 2 4 49 162 . 180 18 Hits 1206 | . 18 38 43 10 11 215 . 4 . 20 . 2 . 30 14 3 12 89 284 . 366 47 Melee 1 | . . . . . . . . . . . . . . . . . . . 1 . . . Projectile 1205 | . 18 38 43 10 11 215 . 4 . 20 . 2 . 30 14 3 12 89 283 . 366 47 Critical Strikes 46 | . . 2 3 . . 8 . . . . . . . 2 4 . . 2 3 . 17 5 Actively Blocked 10 | . . . . . . . . . . . . . . . . . . . . . 5 5 Part Disruptions 8 | . . . . . 2 . . . . . . . . . . . . . 5 . 1 . Damage Taken 19312 | . 200 782 532 170 199 3787 41 35 80 332 . 51 33 952 294 110 297 1274 3826 . 5240 1077 Core 2692 | . 9 130 106 35 . 685 . . . 2 . 11 . 69 43 28 . 58 289 . 995 232 Absorbed by Shields 2644 | . . . . . . . . . . . . . . . 104 . . 406 787 . 1347 . Ignored by Resistances 34 | . . . . . 34 . . . . . . . . . . . . . . . . . Regen/Repaired (Parts) 3389 | . . . . 166 5 3 74 . . 28 1193 . . . 17 35 128 170 643 165 722 40 Core Remaining (%) 69 | 100 . 44 . . 74 . . . . . . 17 . . . . 86 . . 94 . . Volleys Fired 642 | 4 27 57 38 35 19 38 . 13 3 11 1 48 11 31 37 60 21 35 83 1 69 . Largest 4 | 1 2 2 3 3 3 3 . 3 3 3 1 3 4 4 1 1 3 4 4 1 4 . Hottest 298 | 50 90 110 170 172 92 150 . 136 136 136 40 136 226 232 250 250 178 232 298 120 292 . Shots Fired 1090 | 4 37 74 71 97 36 45 . 16 9 35 1 58 23 66 37 60 31 81 179 2 128 . Gun 226 | 4 35 15 40 96 25 4 . . . . . . . . 6 1 . . . . . . Cannon 701 | . . 42 26 1 3 34 . 16 9 35 1 16 23 66 . 31 31 80 159 2 126 . Launcher 37 | . 2 . 5 . . 7 . . . . . . . . . . . 1 20 . 2 . Special 126 | . . 17 . . 8 . . . . . . 42 . . 31 28 . . . . . . Kinetic 428 | . . 16 27 7 26 33 . 3 5 22 . 10 8 24 . . 7 31 88 . 121 . Thermal 611 | 4 25 54 39 90 10 5 . 13 4 13 1 48 15 42 37 60 24 49 71 2 5 . Explosive 34 | . 2 . 5 . . 4 . . . . . . . . . . . 1 20 . 2 . Electromagnetic 17 | . 10 4 . . . 3 . . . . . . . . . . . . . . . . Robot Hit Streak 21 | 2 5 21 17 14 18 5 . 4 2 3 . 7 5 3 5 8 3 5 20 . 8 . Robot Miss Streak 6 | 1 2 3 4 2 2 4 . 1 4 6 . 4 3 4 5 4 2 6 3 . 3 . Penetration Max 1 | . . . . . . . . . . 1 . . . . . . . 1 . . . . Secondary Targets 3 | . 1 . . 2 . . . . . . . . . . . . . . . . . . Max Gunslinging Chain 1 | . 1 . . 1 . . . . . . . . . . . . . . . . . . Shots Hit Robots 635 | 3 24 48 39 62 24 22 . 3 2 14 . 40 8 39 26 61 14 29 100 . 77 . Core Hits 385 | 4 18 14 20 23 9 35 . 3 1 10 . 20 4 16 24 16 14 20 94 . 40 . Critical Kills 37 | . . 1 1 . 1 . . 1 . 5 . 2 2 2 . . 1 3 9 . 9 . Critical Parts Destroyed 44 | . . . 2 . . . . 1 . 5 . . 1 3 . . 1 2 16 . 13 . Critical Strikes 112 | . 2 5 3 4 2 2 . 2 . 10 . 3 3 8 2 . 2 5 30 . 29 . Burn 8 | . 2 2 . 4 . . . . . . . . . . . . . . . . . . Meltdown 4 | . . 1 1 . . . . . . . . . . . . . . . 2 . . . Destroy 81 | . . . 2 . 1 . . 2 . 10 . 2 3 5 . . 2 5 26 . 23 . Blast 9 | . . 1 . . 1 2 . . . . . . . . . . . . 1 . 4 . Corrupt 1 | . . 1 . . . . . . . . . . . . . . . . . . . . Impale 9 | . . . . . . . . . . . . 1 . 3 2 . . . 1 . 2 . Melee Attacks 135 | . . . . . . . . . . . . 9 . 21 5 14 9 2 9 16 46 4 Impact . | . . . . . . . . . . . . . . . . . . . . . . . Slashing . | . . . . . . . . . . . . . . . . . . . . . . . Piercing 128 | . . . . . . . . . . . . 9 . 21 5 7 9 2 9 16 46 4 Sneak Attacks 41 | . . . . . . . . . . . . 6 . 12 5 13 3 . 1 . 1 . Combat Hostiles . | . . . . . . . . . . . . . . . . . . . . . . . Follow-up Attacks . | . . . . . . . . . . . . . . . . . . . . . . . Damage Inflicted 26497 | 41 536 1017 1403 1254 418 2413 . 154 42 505 . 725 367 1815 1105 1532 1352 1357 7268 . 3193 . Guns 3454 | 37 302 152 552 1202 333 50 . . . . . . . . 693 133 . . . . . . Cannons 11162 | . . 839 329 . 44 1048 . 119 42 505 . 111 250 539 . 865 329 1096 2822 . 2224 . Explosions 8140 | . 231 26 520 . . 1315 . . . . . . 117 208 . . 703 261 4253 . 506 . Melee 3149 | . . . . . . . . . . . . 465 . 1056 252 442 320 . 193 . 421 . Ramming 181 | 4 3 . 2 52 31 . . 35 . . . . . 12 . . . . . . 42 . Kinetic 6704 | . . 218 390 95 377 1039 . 85 42 218 . 75 104 349 . . 84 354 1137 . 2137 . Thermal 8414 | 37 212 746 491 1107 10 59 . 34 . 287 . 185 146 398 853 1090 245 742 1685 . 87 . Explosive 6896 | . 231 . 520 . . 1008 . . . . . . 117 . . . . 261 4253 . 506 . Electromagnetic 1153 | . 90 53 . . . 307 . . . . . . . . . . 703 . . . . . Impact . | . . . . . . . . . . . . . . . . . . . . . . . Slashing . | . . . . . . . . . . . . . . . . . . . . . . . Piercing 3149 | . . . . . . . . . . . . 465 . 1056 252 442 320 . 193 . 421 . Highest Corruption 15 | . . . . . 2 8 8 8 10 10 10 . . . 1 2 1 . 2 2 6 15 Average Corruption 4 | . . . . . 1 5 8 8 9 10 10 . . . 1 1 1 . 1 2 2 8 Corruption Purged 4 | . . . . . . . . . . . . . . . . 4 . . . . . . Corruption Blocked . | . . . . . . . . . . . . . . . . . . . . . . . Effects 184 | . . . . . 36 3 31 23 20 23 5 . . . 2 3 . . 8 10 13 7 Message Errors 51 | . . . . . 9 2 9 5 3 7 3 . . . 1 2 . . 1 6 2 1 Matter Fused 41 | . . . . . 3 . 9 8 8 3 . . . . 1 1 . . 2 1 4 1 Heat Flow Errors 18 | . . . . . 6 . 2 . 1 3 1 . . . . . . . 2 . 2 1 Energy Discharges 22 | . . . . . 6 . 5 2 1 3 1 . . . . . . . 1 1 1 1 Parts Fused 1 | . . . . . . . . . . 1 . . . . . . . . . . . . Data Loss (minor) 29 | . . . . . 6 1 4 5 5 2 . . . . . . . . 2 1 1 2 Data Loss (major) 9 | . . . . . 3 . 2 2 . 1 . . . . . . . . . . 1 . Misfires 8 | . . . . . 1 . . 1 1 2 . . . . . . . . . 1 2 . Alerts 3 | . . . . . 2 . . . . 1 . . . . . . . . . . . . Misdirections 1 | . . . . . . . . . . . . . . . . . . . . . . 1 Weapon Failures 1 | . . . . . . . . . 1 . . . . . . . . . . . . . Overload Shots 1 | . . . . . . . . . . . . . 1 . . . . . . . . . Effects 1 | . . . . . . . . . . . . . 1 . . . . . . . . . Heat Surge 1 | . . . . . . . . . . . . . 1 . . . . . . . . . Overflow Damage 1292 | . . . 49 . . 97 . . . . . 83 . 303 1 56 130 21 348 . 204 . Projectiles 445 | . . . . . . 44 . . . . . . . 37 1 54 25 21 141 . 122 . Explosions 395 | . . . 49 . . 53 . . . . . . . . . . 49 . 207 . 37 . Melee 452 | . . . . . . . . . . . . 83 . 266 . 2 56 . . . 45 . Knockbacks 54 | 1 . 3 . 1 . 2 . 1 1 1 . . . 2 . . . 3 18 . 21 . Impact 4 | 1 . . . 1 . . . . . . . . . 1 . . . . . . 1 . Kinetic 48 | . . 3 . . . 2 . 1 1 1 . . . 1 . . . 3 17 . 19 . Secondary 2 | . . . . . . . . . . . . . . . . . . . 1 . 1 . Self-Inflicted Damage 349 | . . . 12 . 3 41 . . . . . . . . . . 90 . 164 . 39 . Shots 12 | . . . 1 . . 3 . . . . . . . . . . 1 . 6 . 1 . Rammed 21 | 2 1 . 1 10 3 . . 2 . . . . . . . . . . . . 2 . Targets Rammed 29 | 2 1 . 3 11 3 . . 2 . . . . . 1 . . . . . . 6 . Kicked 5 | . . . . . . . . . . . . . . 1 . . . . . . 4 . Crushed 3 | . . . 2 1 . . . . . . . . . . . . . . . . . . Highest Temperature 322 | 40 187 289 322 247 245 72 296 . 51 170 121 162 130 163 228 69 214 217 306 . 142 120 Average Temperature 66 | 20 54 60 77 69 75 23 152 . 30 72 77 75 60 68 110 34 75 45 65 . 38 74 Received Heat Transfer 3123 | . 78 458 234 84 6 694 . . . 27 . 20 . 243 . 18 21 113 718 . 367 42 Effects 3 | . . . . 3 . . . . . . . . . . . . . . . . . . Interference 3 | . . . . 3 . . . . . . . . . . . . . . . . . . Siege Activations . | . . . . . . . . . . . . . . . . . . . . . . . Martial Activations . | . . . . . . . . . . . . . . . . . . . . . . . Shielding Activations . | . . . . . . . . . . . . . . . . . . . . . . . Robots Disrupted . | . . . . . . . . . . . . . . . . . . . . . . . Combat Hostiles . | . . . . . . . . . . . . . . . . . . . . . . . Robots Corrupted 1 | . . . . . . . . . . . . . . . . . . . . . 1 . Combat Hostiles . | . . . . . . . . . . . . . . . . . . . . . . . Parts Fried 5 | . . . . . . 1 . . . . . . . 1 2 . 1 . . . . . Impact Corruptions 2 | . . . . . . . . . . . . . . . . . . . . . 2 . Robots Melted 7 | . . 1 1 1 . . . . . . . . . . 1 . . . 3 . . . Combat Hostiles 7 | . . 1 1 1 . . . . . . . . . . 1 . . . 3 . . . Parts Melted 12 | . 2 1 . 1 . . . . . 1 . . . . 1 1 . . 5 . . . Heat Transferred 11506 | 111 777 1258 644 2442 100 74 . 37 . 296 . 762 37 249 1318 1403 148 370 1406 . 74 . Parts Sabotaged 4 | . . . . . . . . . . . . . . . . . . . 4 . . . Parts Stolen . | . . . . . . . . . . . . . . . . . . . . . . . Parts Stripped . | . . . . . . . . . . . . . . . . . . . . . . . Power Chain Reactions 3 | . . 1 . . . 1 . . . . . . . 1 . . . . . . . . Alert | -11 -10 -10 -8 -8 -8 -6 -6 -6 -6 -6 -6 -5 -5 -5 -5 -5 -5 -4 -4 -4 -3 -3 ------- Run | Yrd Mat Sub Mat Sto Rec Fac Was Fac Low Low Zio Pro Fac Ext Cet Arc Hub Fac Arm Lab Res Tes Maximum Alert Level 3 | . . . 1 . . 1 . 1 . . . . 1 3 3 1 3 2 3 . 2 1 Low Security (%) 69 | 100 100 . 84 100 100 47 100 47 . . . . 77 23 . 85 35 . . . 37 84 Level 1 14 | . . . 15 . . 52 . 52 . . . . 22 42 . 14 7 . 13 . 50 15 Level 2 10 | . . . . . . . . . . . . . . 13 51 . 33 100 50 . 12 . Level 3 5 | . . . . . . . . . . . . . . 21 48 . 24 . 36 . . . Level 4 . | . . . . . . . . . . . . . . . . . . . . . . . Level 5 . | . . . . . . . . . . . . . . . . . . . . . . . High Security . | . . . . . . . . . . . . . . . . . . . . . . . Max Security . | . . . . . . . . . . . . . . . . . . . . . . . Peak Influence 989 | 5 102 . 279 111 110 396 41 359 . . . . 306 919 796 359 989 689 985 . 480 201 Initial 498 | . . . . 100 . 396 32 . . . . . . 144 498 264 . 497 326 . . 201 Average 165 | . 25 . 57 23 15 207 4 175 . . . . 59 404 688 56 429 587 633 . 218 171 Influence Increases 10879 | 10 202 40 471 341 272 698 51 723 256 329 24 430 399 1429 388 248 1395 539 1679 . 951 4 Destroy 0b10 Robot/C 4700 | . 120 40 280 100 20 220 . 220 140 200 20 200 100 620 160 80 320 280 1000 . 580 . Destroy 0b10 Robot/NC 375 | 10 20 . 20 65 25 35 . 25 . . . 5 15 20 10 25 60 5 20 . 15 . Destroy Leader 708 | . 24 . 50 42 . 20 . 64 20 30 . 10 16 56 . . 72 50 164 . 90 . Allied During Kill 1915 | . . . . . 2 . . 291 96 99 4 215 66 566 170 105 296 5 . . . . Successful Hack 137 | . 7 . 49 27 13 . . 10 . . . . . 21 . . . . 6 . 4 . Select Force Hacks 210 | . . . . . 210 . . . . . . . . . . . . . . . . . Disable Machine 600 | . . . 15 75 . . . 30 . . . . 90 60 . 30 165 15 105 . 15 . Destroy Structure 1494 | . 16 . 42 2 2 28 51 83 . . . . 112 86 48 8 392 94 354 . 172 4 Advance Influence 350 | . . . . . . 350 . . . . . . . . . . . . . . . . Partial Spotted 30 | . . . 15 15 . . . . . . . . . . . . . . . . . . Lose Combat Pursuer 360 | . 15 . . 15 . 45 . . . . . . . . . . 90 90 30 . 75 . Influence Decreases 10744 | 10 123 119 232 580 162 714 145 380 335 341 276 430 103 834 619 908 380 888 1386 959 592 228 Entered New Map 3650 | . . 39 . 139 . 64 62 . 127 51 252 . . 152 393 396 . 518 340 959 . 158 Time Decay 5383 | 10 123 60 192 441 162 350 70 290 198 270 24 430 81 502 206 452 194 310 546 . 412 60 Lost Part 530 | . . 20 40 . . 200 . . 10 . . . . 10 . . . 10 50 . 180 10 Lost Ally 731 | . . . . . . 100 13 90 . 20 . . 22 170 20 60 186 50 . . . . Purge Threat 450 | . . . . . . . . . . . . . . . . . . . 450 . . . Squads Dispatched 38 | . . . 2 1 . 4 . 2 . . . . 2 2 . . 5 6 8 . 6 . Investigation 5 | . . . . . . . . . . . . . 1 1 . . 1 2 . . . . Extermination 10 | . . . . . . 1 . 1 . . . . . . . . 1 1 4 . 2 . Reinforcement 19 | . . . 2 1 . 3 . 1 . . . . 1 1 . . 2 1 3 . 4 . Assault 4 | . . . . . . . . . . . . . . . . . 1 2 1 . . . Garrison . | . . . . . . . . . . . . . . . . . . . . . . . Intercept . | . . . . . . . . . . . . . . . . . . . . . . . Searches Triggered . | . . . . . . . . . . . . . . . . . . . . . . . Construction Impeded 8 | . . . 1 . . 2 . 1 . . . . . 1 . . 1 1 . . 1 . Haulers Reinforced 1 | . . . . . . . . . . . . . 1 . . . . . . . . . Active Scanning Responses . | . . . . . . . . . . . . . . . . . . . . . . . Cargo Convoy Interrupts 1 | . . . . . . 1 . . . . . . . . . . . . . . . . Stealth | -11 -10 -10 -8 -8 -8 -6 -6 -6 -6 -6 -6 -5 -5 -5 -5 -5 -5 -4 -4 -4 -3 -3 --------- Run | Yrd Mat Sub Mat Sto Rec Fac Was Fac Low Low Zio Pro Fac Ext Cet Arc Hub Fac Arm Lab Res Tes Distress Signals 25 | . 2 . 2 2 2 . . 2 . . . . 1 . 2 . 4 4 3 . 1 . Communications Jammed 22 | . . . . . . . . . . . . . . . . . . . . . 22 . Distress Signals 22 | . . . . . . . . . . . . . . . . . . . . . 22 . Times Spotted 377 | . 12 10 19 19 6 35 5 10 5 10 1 10 4 27 10 29 18 28 59 . 53 7 Peak Tracking Total 11 | . 4 2 7 4 2 11 2 3 3 7 1 5 2 6 5 2 8 6 8 . 11 6 Tactical Retreats 15 | . 1 . . 1 . 1 . . . . . . . . . . 3 3 2 . 4 . Traps | -11 -10 -10 -8 -8 -8 -6 -6 -6 -6 -6 -6 -5 -5 -5 -5 -5 -5 -4 -4 -4 -3 -3 ------- Run | Yrd Mat Sub Mat Sto Rec Fac Was Fac Low Low Zio Pro Fac Ext Cet Arc Hub Fac Arm Lab Res Tes Traps Triggered 6 | . . . . . . 1 . . . . . . . 4 . . . 1 . . . . Indirectly . | . . . . . . . . . . . . . . . . . . . . . . . Trap Hack Attempts . | . . . . . . . . . . . . . . . . . . . . . . . Triggered . | . . . . . . . . . . . . . . . . . . . . . . . Disarmed . | . . . . . . . . . . . . . . . . . . . . . . . Reprogrammed . | . . . . . . . . . . . . . . . . . . . . . . . Reused . | . . . . . . . . . . . . . . . . . . . . . . . Traps Extracted . | . . . . . . . . . . . . . . . . . . . . . . . Installed . | . . . . . . . . . . . . . . . . . . . . . . . Triggered . | . . . . . . . . . . . . . . . . . . . . . . . Machines | -11 -10 -10 -8 -8 -8 -6 -6 -6 -6 -6 -6 -5 -5 -5 -5 -5 -5 -4 -4 -4 -3 -3 ---------- Run | Yrd Mat Sub Mat Sto Rec Fac Was Fac Low Low Zio Pro Fac Ext Cet Arc Hub Fac Arm Lab Res Tes Machines Disabled 48 | . . 1 1 5 2 . . 2 . . . . 6 5 . 2 11 2 7 3 1 . Max in Single Turn 10 | . . 1 1 1 1 . . 1 . . . . 4 1 . 1 10 1 1 1 1 . Garrison Access 3 | . . . . . . . . 1 . . . . . . . . . 1 . . 1 . Network Hub 1 | . . . . . . . . . . . . . . . . . 1 . . . . . Machines Repaired . | . . . . . . . . . . . . . . . . . . . . . . . Machines Dismantled 3 | . . . . 3 . . . . . . . . . . . . . . . . . . Machines Sabotaged . | . . . . . . . . . . . . . . . . . . . . . . . Overloaded Fab Kills . | . . . . . . . . . . . . . . . . . . . . . . . Hacking | -11 -10 -10 -8 -8 -8 -6 -6 -6 -6 -6 -6 -5 -5 -5 -5 -5 -5 -4 -4 -4 -3 -3 --------- Run | Yrd Mat Sub Mat Sto Rec Fac Was Fac Low Low Zio Pro Fac Ext Cet Arc Hub Fac Arm Lab Res Tes Machines Accessed 53 | . 1 2 4 11 12 2 . 3 . . . . . 6 . . . 3 6 . 3 . Terminals 24 | . 1 . 2 8 4 2 . . . . . . . 6 . . . . 1 . . . Fabricators 6 | . . . . . . . . 1 . . . . . . . . . 1 3 . 1 . Repair Stations 5 | . . . 1 1 . . . 1 . . . . . . . . . 1 1 . . . Recycling Units 11 | . . . 1 2 7 . . . . . . . . . . . . . 1 . . . Scanalyzers . | . . . . . . . . . . . . . . . . . . . . . . . Garrison Access 4 | . . . . . . . . 1 . . . . . . . . . 1 . . 2 . Total Hacks 128 | . 4 6 16 25 28 5 . 6 . . . . . 12 . . . 4 16 . 6 . Successful 57 | . 2 6 5 8 20 1 . 2 . . . . . 3 . . . 1 6 . 3 . Failed 71 | . 2 . 11 17 8 4 . 4 . . . . . 9 . . . 3 10 . 3 . Catastrophic 11 | . . . 1 2 1 . . 1 . . . . . 2 . . . 1 1 . 2 . Database Lockouts . | . . . . . . . . . . . . . . . . . . . . . . . Manual 133 | . . . 5 6 24 2 . . . . 2 . 6 5 1 5 7 10 23 . 20 17 Terminals 59 | . 4 . 10 18 9 5 . . . . . . . 12 . . . . 1 . . . Fabricators 15 | . . . . . . . . 1 . . . . . . . . . 2 10 . 2 . Repair Stations 10 | . . . 2 2 . . . 3 . . . . . . . . . 1 2 . . . Recycling Units 27 | . . . 4 5 15 . . . . . . . . . . . . . 3 . . . Scanalyzers . | . . . . . . . . . . . . . . . . . . . . . . . Garrison Access 7 | . . . . . . . . 2 . . . . . . . . . 1 . . 4 . Terminal Hacks 27 | . 2 6 3 6 5 1 . . . . . . . 3 . . . . 1 . . . Record 7 | . . 5 . . 2 . . . . . . . . . . . . . . . . . Robot Analysis 2 | . . . 1 . 1 . . . . . . . . . . . . . . . . . Prototype ID Bank 2 | . . . 1 1 . . . . . . . . . . . . . . . . . . Open Door 6 | . . . . 2 . . . . . . . . . 3 . . . . 1 . . . Branch Access Points 1 | . . . 1 . . . . . . . . . . . . . . . . . . . Unreport Threat 1 | . . . . 1 . . . . . . . . . . . . . . . . . . Locate Traps 1 | . 1 . . . . . . . . . . . . . . . . . . . . . Hauler Manifests 1 | . . . . 1 . . . . . . . . . . . . . . . . . . Registered Components 2 | . 1 . . . . 1 . . . . . . . . . . . . . . . . Zone Layout 1 | . . . . 1 . . . . . . . . . . . . . . . . . . Proto ID Catalog 1 | . . 1 . . . . . . . . . . . . . . . . . . . . Release Object 2 | . . . . . 2 . . . . . . . . . . . . . . . . . Fabricator Hacks 5 | . . . . . . . . . . . . . . . . . . . 4 . 1 . Network Status 2 | . . . . . . . . . . . . . . . . . . . 1 . 1 . Load Schematic 1 | . . . . . . . . . . . . . . . . . . . 1 . . . Build 2 | . . . . . . . . . . . . . . . . . . . 2 . . . Repair Station Hacks 4 | . . . 1 2 . . . 1 . . . . . . . . . . . . . . Scan Component 3 | . . . 1 1 . . . 1 . . . . . . . . . . . . . . Repair 1 | . . . . 1 . . . . . . . . . . . . . . . . . . Recycling Unit Hacks . | . . . . . . . . . . . . . . . . . . . . . . . Scanalyzer . | . . . . . . . . . . . . . . . . . . . . . . . Garrison Access Hacks 3 | . . . . . . . . 1 . . . . . . . . . 1 . . 1 . Seal Access 3 | . . . . . . . . 1 . . . . . . . . . 1 . . 1 . Unauthorized Hacks 18 | . . . 1 . 15 . . . . . . . . . . . . . 1 . 1 . Terminals 6 | . . . 1 . 5 . . . . . . . . . . . . . . . . . Botnet 1 | . . . . . 1 . . . . . . . . . . . . . . . . . Disrupt 1 | . . . 1 . . . . . . . . . . . . . . . . . . . Skim 4 | . . . . . 4 . . . . . . . . . . . . . . . . . Fabricators 2 | . . . . . . . . . . . . . . . . . . . 1 . 1 . Prioritize 1 | . . . . . . . . . . . . . . . . . . . 1 . . . Haulers 1 | . . . . . . . . . . . . . . . . . . . . . 1 . Repair Stations . | . . . . . . . . . . . . . . . . . . . . . . . Recycling Units 10 | . . . . . 10 . . . . . . . . . . . . . . . . . Mask 3 | . . . . . 3 . . . . . . . . . . . . . . . . . Tunnel 7 | . . . . . 7 . . . . . . . . . . . . . . . . . Scanalyzers . | . . . . . . . . . . . . . . . . . . . . . . . Garrison Access . | . . . . . . . . . . . . . . . . . . . . . . . Data Cores Recovered 1 | . . . . 1 . . . . . . . . . . . . . . . . . . Used . | . . . . . . . . . . . . . . . . . . . . . . . Hacking Detections 31 | . 1 . 4 9 3 2 . 2 . . . . . 3 . . . 2 3 . 2 . Full Trace Events 1 | . . . . . . . . . . . . . . 1 . . . . . . . . Feedback Events . | . . . . . . . . . . . . . . . . . . . . . . . Feedback Blocked . | . . . . . . . . . . . . . . . . . . . . . . . Robot Schematics Acquired 11 | . . . . . . . . . . . 3 . . . . . . . 3 . . 5 Robots Built . | . . . . . . . . . . . . . . . . . . . . . . . Authchips . | . . . . . . . . . . . . . . . . . . . . . . . Time . | . . . . . . . . . . . . . . . . . . . . . . . Total Robot Build Rating . | . . . . . . . . . . . . . . . . . . . . . . . Part Schematics Acquired 34 | . . . . . . . . . . . 15 . . . . . 11 . 8 . . . Parts Built 3 | . . . . . . . . . . . . . . . . . . . 3 . . . Authchips 2 | . . . . . . . . . . . . . . . . . . . 2 . . . Time 201 | . . . . . . . . . . . . . . . . . . . 201 . . . Total Part Build Rating 20 | . . . . . . . . . . . . . . . . . . . 20 . . . Parts Repaired 1 | . . . . 1 . . . . . . . . . . . . . . . . . . Time 38 | . . . . 38 . . . . . . . . . . . . . . . . . . Parts Recycled . | . . . . . . . . . . . . . . . . . . . . . . . Recycled Matter . | . . . . . . . . . . . . . . . . . . . . . . . Retrieved Matter . | . . . . . . . . . . . . . . . . . . . . . . . Retrieved Components . | . . . . . . . . . . . . . . . . . . . . . . . Parts Scanalyzed . | . . . . . . . . . . . . . . . . . . . . . . . Part Schematics Acquired . | . . . . . . . . . . . . . . . . . . . . . . . Parts Damaged . | . . . . . . . . . . . . . . . . . . . . . . . Bothacking | -11 -10 -10 -8 -8 -8 -6 -6 -6 -6 -6 -6 -5 -5 -5 -5 -5 -5 -4 -4 -4 -3 -3 ------------ Run | Yrd Mat Sub Mat Sto Rec Fac Was Fac Low Low Zio Pro Fac Ext Cet Arc Hub Fac Arm Lab Res Tes Used RIF Installer . | . . . . . . . . . . . . . . . . . . . . . . . Robots Hacked 5 | . . . . . . . . . . . . . . . . 5 . . . . . . Non-combat 2 | . . . . . . . . . . . . . . . . 2 . . . . . . Combat 3 | . . . . . . . . . . . . . . . . 3 . . . . . . Robot Hacks Applied 7 | . . . . . . . . . . . . . . . . 7 . . . . . . parse_system 3 | . . . . . . . . . . . . . . . . 3 . . . . . . check_alert 4 | . . . . . . . . . . . . . . . . 4 . . . . . . Relay Couplers Released . | . . . . . . . . . . . . . . . . . . . . . . . Fabnet Peak Effective % . | . . . . . . . . . . . . . . . . . . . . . . . Robots Rewired 22 | . . . . . 8 1 . . . . . . . 13 . . . . . . . . Allies Hacked 2 | . . . . . . . . 2 . . . . . . . . . . . . . . Hacks Repelled . | . . . . . . . . . . . . . . . . . . . . . . . Allies | -11 -10 -10 -8 -8 -8 -6 -6 -6 -6 -6 -6 -5 -5 -5 -5 -5 -5 -4 -4 -4 -3 -3 -------- Run | Yrd Mat Sub Mat Sto Rec Fac Was Fac Low Low Zio Pro Fac Ext Cet Arc Hub Fac Arm Lab Res Tes Total Allies 70 | . . . . . 8 1 19 . . . 6 . 2 28 5 . . 1 . . . . Largest Group 21 | . . . . . 6 7 19 15 6 6 9 9 9 21 21 18 15 2 . . . . Highest-Rated Group 1296 | . . . . . 78 108 702 588 252 246 455 455 424 1020 1296 1106 837 116 . . . . Highest-Rated Ally 159 | . . . . . 27 30 50 50 50 46 96 96 85 159 159 146 96 96 . . . . Zionite Dispatches 3 | . . . . . . . . . . . . . 1 2 . . . . . . . . Heavy 2 | . . . . . . . . . . . . . 1 1 . . . . . . . . Hero 1 | . . . . . . . . . . . . . . 1 . . . . . . . . Total Orders 25 | . . . . . 10 . . . . . . . . . 7 3 . 2 2 . 1 . STAY 8 | . . . . . 2 . . . . . . . . . 5 1 . . . . . . ROAM 1 | . . . . . . . . . . . . . . . . 1 . . . . . . FOLLOW 6 | . . . . . 3 . . . . . . . . . 2 1 . . . . . . DROP 1 | . . . . . 1 . . . . . . . . . . . . . . . . . PICKUP 4 | . . . . . 4 . . . . . . . . . . . . . . . . . RETURN 5 | . . . . . . . . . . . . . . . . . . 2 2 . 1 . Ally Attacks 669 | . . . . . 3 11 172 61 29 21 5 33 18 176 21 31 83 5 . . . . Total Damage 21229 | . . . . . 51 105 4345 2330 567 762 145 778 1057 5738 1643 943 2622 143 . . . . Kills 112 | . . . . . 1 1 6 14 6 4 1 7 5 34 8 4 20 1 . . . . Allies Corrupted 1 | . . . . . . . . . . . . . . 1 . . . . . . . . Allies Melted 1 | . . . . . . . . 1 . . . . . . . . . . . . . . Intel | -11 -10 -10 -8 -8 -8 -6 -6 -6 -6 -6 -6 -5 -5 -5 -5 -5 -5 -4 -4 -4 -3 -3 ------- Run | Yrd Mat Sub Mat Sto Rec Fac Was Fac Low Low Zio Pro Fac Ext Cet Arc Hub Fac Arm Lab Res Tes Active Infowar (turns) 16826 | 13 418 2968 574 1661 1500 614 860 32 228 595 2570 992 299 46 . . 147 347 1207 701 1054 . Optics 4385 | . . . . . . . . . 228 595 2570 992 . . . . . . . . . . Terrain 3927 | . . . . . . . 860 32 . . . 402 299 46 . . 147 317 667 701 456 . Seismic 8556 | 13 418 2968 574 1661 1500 614 . . . . . . . . . . . 19 390 . 399 . Jamming 1701 | . . . . . . . . . . . . 121 . . . . . 11 605 137 827 . Robot Analysis Total 2 | . . . 1 . 1 . . . . . . . . . . . . . . . . . Derelict Logs Recovered 5 | . . 1 . . . . . . 1 1 . 2 . . . . . . . . . . Drone Launches 5 | . . . . . . . . . . . . . . . . . . 2 2 . 1 . Drone Recoveries 5 | . . . . . . . . . . . . . . . . . . 2 2 . 1 . Zionite Intel Received 14 | . . . . . . . . . . . . . . . . . 1 2 4 . 4 3 Emergency Access 1 | . . . . . . . . . . . . . . . . . . . . . 1 . Guard Positions 1 | . . . . . . . . . . . . . . . . . . . 1 . . . Component Stockpiles 1 | . . . . . . . . . . . . . . . . . . . 1 . . . Prototype Stockpiles 1 | . . . . . . . . . . . . . . . . . . . . . 1 . Prototype Schematics 2 | . . . . . . . . . . . . . . . . . 1 . 1 . . . Unaware Schematics 2 | . . . . . . . . . . . . . . . . . . . 1 . . 1 Trap Installations 1 | . . . . . . . . . . . . . . . . . . . . . 1 . Active Terminals 1 | . . . . . . . . . . . . . . . . . . 1 . . . . Active Garrisons 3 | . . . . . . . . . . . . . . . . . . 1 . . 1 1 Depthwide Sectors/-1 1 | . . . . . . . . . . . . . . . . . . . . . . 1 Exploration | -11 -10 -10 -8 -8 -8 -6 -6 -6 -6 -6 -6 -5 -5 -5 -5 -5 -5 -4 -4 -4 -3 -3 ------------- Run | Yrd Mat Sub Mat Sto Rec Fac Was Fac Low Low Zio Pro Fac Ext Cet Arc Hub Fac Arm Lab Res Tes Turns Passed 29209 | 108 418 3019 852 2073 5116 793 915 746 402 595 2570 1068 309 1342 421 3631 455 692 1574 701 1276 133 Spaces Moved 13234 | 54 172 1143 285 841 1992 276 623 402 240 349 1482 547 213 737 230 919 286 412 943 217 744 127 Core 432 | 4 . . . . . 25 156 . . . . . . . . 136 . . . . 16 95 Treads 7175 | 50 172 1143 285 841 1155 65 467 402 240 349 1482 524 . . . . . . . . . . Legs 4604 | . . . . . . . . . . . . 23 213 737 230 783 286 412 943 217 728 32 Wheels 1002 | . . . . . 837 165 . . . . . . . . . . . . . . . . Hover 21 | . . . . . . 21 . . . . . . . . . . . . . . . . Flight . | . . . . . . . . . . . . . . . . . . . . . . . Fastest Speed 50 | 50 160 240 246 160 202 50 50 160 160 160 160 120 120 118 118 118 118 118 112 112 50 50 Average Speed 183 | 151 198 240 246 210 227 240 135 160 160 160 160 158 122 123 118 337 118 118 123 112 114 81 Slowest Speed 1600 | 160 240 240 246 246 330 272 160 160 160 160 160 160 190 190 118 1600 118 194 190 112 190 120 Overloaded Moves . | . . . . . . . . . . . . . . . . . . . . . . . Propulsion Burnouts . | . . . . . . . . . . . . . . . . . . . . . . . Robots Hopped . | . . . . . . . . . . . . . . . . . . . . . . . Potential Cave-ins . | . . . . . . . . . . . . . . . . . . . . . . . Cave-ins Triggered . | . . . . . . . . . . . . . . . . . . . . . . . Teleports 1 | . . . . . . . . . . . . . . . . . . . . . 1 . Exploration Rate (%) 50 | 4 25 69 24 95 96 12 96 10 46 57 91 66 9 85 64 80 28 15 63 76 25 18 Regions Visited 22 Branch Regions 14 Pre-discovered Areas 11 | . . 1 . . 7 . . . . . . 1 . . . . . . . . . 2 Known Exits Taken 7 | . . . 1 . . . . 1 1 . . . 1 . . . 1 1 . 1 . . Unknown Exits Taken 13 | 1 1 1 . 1 1 . . . . 1 1 1 . 1 1 1 . . 1 . 1 . Scrap Searched 14 | . . 6 . . . . . . 2 1 4 1 . . . . . . . . . . Spaces Dug 272 | . . . 6 . 2 2 . 6 . . . 1 4 . . . 182 11 16 . 40 2 Terrain Destroyed 826 | . 16 5 51 1 2 32 . 12 3 10 . 12 52 29 . 5 193 43 266 . 92 2 Melee 27 | . . . . . . . . . . . . . . . . . 1 1 4 . 19 2 Projectile 242 | . . 2 16 1 2 9 . 12 3 10 . 12 11 24 . 5 20 37 39 . 39 . AOE 557 | . 16 3 35 . . 23 . . . . . . 41 5 . . 172 5 223 . 34 . Terrain Rammed . | . . . . . . . . . . . . . . . . . . . . . . . Walls Destroyed . | . . . . . . . . . . . . . . . . . . . . . . . Machines Disabled . | . . . . . . . . . . . . . . . . . . . . . . . Actions | -11 -10 -10 -8 -8 -8 -6 -6 -6 -6 -6 -6 -5 -5 -5 -5 -5 -5 -4 -4 -4 -3 -3 --------- Run | Yrd Mat Sub Mat Sto Rec Fac Was Fac Low Low Zio Pro Fac Ext Cet Arc Hub Fac Arm Lab Res Tes Total 16946 | 71 212 1308 368 1027 2560 361 690 488 251 361 1683 674 243 1070 328 1382 362 539 1179 649 992 148 Wait 1903 | . . 73 22 12 445 10 41 61 . . 165 36 7 100 21 328 35 56 40 402 46 3 Move 13215 | 54 171 1142 284 840 1991 276 622 401 239 348 1481 546 212 736 229 918 285 411 942 216 744 127 Hop . | . . . . . . . . . . . . . . . . . . . . . . . Pick Up 189 | 5 11 12 7 29 17 5 10 6 4 1 5 8 2 1 6 13 . 6 20 4 17 . Fast Attach 97 | 7 . . . 15 2 1 10 1 . . 7 3 4 6 5 13 . . 9 3 2 9 Attach 73 | . . 3 8 3 . 14 1 1 1 . 1 3 2 . 2 6 . 3 12 1 11 1 Detach 32 | . . . . 2 4 2 . 1 . . 2 1 1 . 7 3 . . 2 1 4 2 Swap 189 | . 2 14 6 21 7 2 3 2 2 . 6 11 1 6 3 7 7 22 39 2 26 . Drop 215 | . . 7 . 43 23 11 3 . 2 1 15 9 3 6 13 20 5 4 23 3 22 2 Fire 642 | 4 27 57 38 35 19 38 . 13 3 11 1 48 11 31 37 60 21 35 83 1 69 . Melee 135 | . . . . . . . . . . . . 9 . 21 5 14 9 2 9 16 46 4 Ram 3 | . . . . . 2 . . . . . . . . . . . . . . . 1 . Kick 5 | . . . . . . . . . . . . . . 1 . . . . . . 4 . Crush 19 | 1 1 . 3 11 1 . . 2 . . . . . . . . . . . . . . Escape Stasis 10 | . . . . . . . . . . . . . . 10 . . . . . . . . Rewire 203 | . . . . . 49 2 . . . . . . . 152 . . . . . . . . Trap . | . . . . . . . . . . . . . . . . . . . . . . . Miscellaneous 16 | . . . . 16 . . . . . . . . . . . . . . . . . . Route ------- -11/Scrapyard -10/Materials (discovered 2 exits: [*Min] / *Sub) -10/Subcaves (discovered 2 exits: *Mat x2) -8/Materials -8/Storage (discovered 2 exits: [*Fac] / *Rec) -8/Recycling -6/Factory -6/Waste -6/Factory -6/Lower Caves -6/Lower Caves -6/Zion -5/Proximity Caves -5/Factory (discovered 4 exits: Fac / Upp x2 / *Ext) -5/Extension (discovered 2 exits: *Fac / *Cet) -5/Cetus (discovered 2 exits: *Fac / *Arc) -5/Archives (discovered 3 exits: *Fac / *Hub x2) -5/Hub_04(d) (discovered 2 exits: *Fac x2) -4/Factory (discovered 3 exits: Upp x2 / *Arm) -4/Armory (discovered 3 exits: Res x2 / [*Lab]) -4/Lab -3/Research -3/Testing History --------- Turn | Location | Event 28 | -11/Scrapyard | Discovered new exit (range 15) 109 | -11/Scrapyard | Entered Materials 185 | -10/Materials | Discovered new exit (range 9) 313 | -10/Materials | Build established: Mutant 513 | -10/Materials | Discovered new exit (range 6) 527 | -10/Materials | Entered Subcaves 528 | -10/Subcaves | Approached by a straggling Scientist 560 | -10/Subcaves | Discovered new exit (range 7) 1226 | -10/Subcaves | Learned Materials interactive machine intel 1230 | -10/Subcaves | Disturbed a concealed Subdweller 1230 | -10/Subcaves | Build established: Scavenger-Mutant 1485 | -10/Subcaves | Visited 4L-MR0's lab 1508 | -10/Subcaves | Found Prototype Energy Cannon 1516 | -10/Subcaves | Identified Powered Cannon 1680 | -10/Subcaves | Visited Clippyterm 1687 | -10/Subcaves | Learned location of Extension (-5) 1687 | -10/Subcaves | Learned Factory trap positions 2070 | -10/Subcaves | Discovered new exit (range 15) 2255 | -10/Subcaves | A swath of the cavern ceiling suddenly collapsed 2666 | -10/Subcaves | A swath of the cavern ceiling suddenly collapsed 2965 | -10/Subcaves | Core integrity fell below 50% 3546 | -10/Subcaves | Entered Materials 3546 | -8/Materials | Evolved 4 slots: Propulsion x1, Utility x2, Weapon x1 3547 | -8/Materials | Loaded intel: 19 interactive machine locations 3569 | -8/Materials | Identified exit to Storage 3856 | -8/Materials | Build established: Scavenger-Tank 4262 | -8/Materials | Lost 3 parts (1p1n1u) 4398 | -8/Materials | Entered Storage 4454 | -8/Storage | Met 01-MTF 4820 | -8/Storage | Build established: Tank 5503 | -8/Storage | Discovered new exit (range 16) 6010 | -8/Storage | Repaired Hrd. Medium Armor Plating? 6461 | -8/Storage | Used back door to open Recycling access 6461 | -8/Storage | Discovered new exit (range 5) 6471 | -8/Storage | Entered Recycling 6471 | -8/Recycling | Accompanied by 1 ally (01-MTF) 7057 | -8/Recycling | Discovered new exit (range 16) 8662 | -8/Recycling | Entered Scraplab 8764 | -8/Recycling | Destroyed 01-MTF 8782 | -8/Recycling | Found Prototype Device 8782 | -8/Recycling | Identified Scrap Engine 9044 | -8/Recycling | Build established: Gunner 9604 | -8/Recycling | Build established: Construct 10423 | -8/Recycling | Build established: Commander-Construct 11587 | -8/Recycling | Entered Factory 11587 | -6/Factory | Accompanied by 6 allies 11587 | -6/Factory | Evolved 4 slots: Propulsion x2, Utility x2 11588 | -6/Factory | Loaded intel: 105 trap records 12097 | -6/Factory | Lost 4 allies 12272 | -6/Factory | Cargo convoy interrupted 12325 | -6/Factory | Destroyed 7 combat bots 12343 | -6/Factory | Core integrity fell below 50% 12373 | -6/Factory | Core integrity fell below 20% 12380 | -6/Factory | Manually triggered Chute Trap 12380 | -6/Factory | Sucked down chute 12380 | -6/Factory | Entered Waste 12387 | -6/Waste | Spotted C-40 Crusher 12406 | -6/Waste | Lost 20 parts (2p3n8u7w) 12412 | -6/Waste | Spotted C-40 Crusher 12419 | -6/Waste | Warlord forces began an assault 12425 | -6/Waste | Allies destroyed C-40 Crusher 12429 | -6/Waste | Found Prototype Device 12429 | -6/Waste | Identified Exp. Terrain Scanner 12471 | -6/Waste | Spotted C-40 Crusher 12472 | -6/Waste | Allies destroyed C-40 Crusher 12476 | -6/Waste | Spotted C-40 Crusher 12484 | -6/Waste | Allies destroyed C-40 Crusher 12487 | -6/Waste | Spotted C-40 Crusher 12498 | -6/Waste | Allies destroyed C-40 Crusher 12532 | -6/Waste | Spotted C-40 Crusher 12543 | -6/Waste | Allies destroyed C-40 Crusher 12574 | -6/Waste | Lost 4 allies 12577 | -6/Waste | Build established: Mutant 12626 | -6/Waste | Discovered new exit (range 13) 12682 | -6/Waste | Found Prototype Processor 12787 | -6/Waste | Found Adv. Powered Armor 12911 | -6/Waste | Build established: Tank 13295 | -6/Waste | Entered Factory 13295 | -6/Factory | Accompanied by 15 allies 13581 | -6/Factory | Discovered new exit (range 9) 13969 | -6/Factory | Identified exit to Lower Caves 13994 | -6/Factory | Lost 3 allies 13997 | -6/Factory | Spotted B-75 Beast 13999 | -6/Factory | Allies destroyed B-75 Beast 14041 | -6/Factory | Entered Lower Caves 14041 | -6/Lower Caves | Accompanied by 6 allies 14067 | -6/Lower Caves | System corruption reached 10% 14127 | -6/Lower Caves | Identified exit to Lower Caves 14443 | -6/Lower Caves | Entered another Lower Caves area 14443 | -6/Lower Caves | Accompanied by 6 allies 14474 | -6/Lower Caves | Learned location of 1 exit from Factory 14785 | -6/Lower Caves | Lost 3 allies 15026 | -6/Lower Caves | Discovered new exit (range 8) 15038 | -6/Lower Caves | Entered Zion 15038 | -6/Zion | Accompanied by 3 allies 15067 | -6/Zion | Found CR-A16's Pointy Stick 15096 | -6/Zion | Discovered new exit (range 16) 15158 | -6/Zion | System corruption cleaned by Quarantine Array 15279 | -6/Zion | Found Prototype Launcher 15279 | -6/Zion | Identified Rocket Array 15501 | -6/Zion | Given A8's code to call for help 15775 | -6/Zion | Identified Exp. Terrain Scan Processor 15777 | -6/Zion | Found Prototype Energy Gun 15902 | -6/Zion | Met Imprinter 16084 | -6/Zion | Given the Hacking Drone Bay 16085 | -6/Zion | Found Prototype Device 16241 | -6/Zion | Received a visual enhancement algorithm 16579 | -6/Zion | Imprinted 16582 | -6/Zion | Declared Zion's savior 16776 | -6/Zion | Found Prototype Special Weapon 16776 | -6/Zion | Identified RU-N14's Throwing Claymores 16848 | -6/Zion | Visited the Megawrench Repair Shop 16848 | -6/Zion | Megawrench repaired 12 parts 17107 | -6/Zion | Ran a visual enhancement algorithm 17246 | -6/Zion | Enhanced Grunt warped into view, answering call for help 17252 | -6/Zion | Enhanced Grunt warped into view, answering call for help 17608 | -6/Zion | Entered Proximity Caves 17608 | -5/Proximity Caves | Accompanied by 9 allies 17937 | -5/Proximity Caves | Learned location of Warlord (-5) 17957 | -5/Proximity Caves | Discovered new exit (range 28) 18020 | -5/Proximity Caves | Attracted the attention of an 0b10 checkpoint 18105 | -5/Proximity Caves | Found DCF Scrap (13 items) 18142 | -5/Proximity Caves | Learned 8 Factory zone layouts 18676 | -5/Proximity Caves | Entered Factory 18676 | -5/Factory | Accompanied by 7 allies 18676 | -5/Factory | Evolved 2 slots: Power x1, Weapon x1 18677 | -5/Factory | Identified exit to Extension 18678 | -5/Factory | Identified exit to Upper Caves 18678 | -5/Factory | Identified exit to Factory 18792 | -5/Factory | Zion Heavy squad teleported in 18880 | -5/Factory | Build established: Scavenger-Skirmisher 18985 | -5/Factory | Entered Extension 18985 | -5/Extension | Accompanied by 7 allies 19022 | -5/Extension | Zion hero teleported in (NK-0LA) 19175 | -5/Extension | Found Prototype Protection 19175 | -5/Extension | Identified Zio. Weapon Casing 19332 | -5/Extension | Build established: Scavenger-Tank 19366 | -5/Extension | Rescued a captive Derelict 19372 | -5/Extension | Rescued a captive Derelict 19418 | -5/Extension | Rescued a captive Derelict 19419 | -5/Extension | Rescued a captive Derelict 19713 | -5/Extension | Spotted B-75 Beast 19726 | -5/Extension | Spotted B-75 Beast 19742 | -5/Extension | Destroyed B-75 Beast 19754 | -5/Extension | Revealed the true nature of CR-A16's Pointy Stick 19755 | -5/Extension | Allies destroyed B-75 Beast 19776 | -5/Extension | Lost 6 allies 19791 | -5/Extension | Rescued a captive Derelict 19792 | -5/Extension | Rescued a captive Derelict 19842 | -5/Extension | Rescued a captive Derelict 19857 | -5/Extension | Zion Heavy squad teleported in 19922 | -5/Extension | Rescued a captive Derelict 19923 | -5/Extension | Rescued a captive Derelict 20050 | -5/Extension | Rescued a captive Derelict 20054 | -5/Extension | Rescued a captive Derelict 20136 | -5/Extension | Lost 3 allies 20187 | -5/Extension | Rescued A7 20217 | -5/Extension | Discovered exit to Factory (range 10) 20219 | -5/Extension | Discovered new exit (range 6) 20327 | -5/Extension | Entered Cetus 20327 | -5/Cetus | Accompanied by 17 allies (incl. NK-0LA, A7) 20330 | -5/Cetus | Identified Storm Laser 20332 | -5/Cetus | Acquired a Cetus Manufacturing Module code from A7 20346 | -5/Cetus | Spotted Cetus Guard 20347 | -5/Cetus | Spotted Cetus Guard 20350 | -5/Cetus | Spotted Cetus Guard 20350 | -5/Cetus | Spotted Cetus Guard 20356 | -5/Cetus | Allies destroyed Cetus Guard 20359 | -5/Cetus | Destroyed Cetus Guard 20360 | -5/Cetus | Allies destroyed Cetus Guard 20361 | -5/Cetus | Allies destroyed Cetus Guard 20419 | -5/Cetus | Started Cetus Manufacturing Module 20433 | -5/Cetus | Discovered new exit (range 16) 20444 | -5/Cetus | Manufactured an Enhanced Grunt 20456 | -5/Cetus | Spotted Cetus Guard 20457 | -5/Cetus | Spotted Cetus Guard 20460 | -5/Cetus | Allies destroyed Cetus Guard 20460 | -5/Cetus | Spotted Cetus Guard 20460 | -5/Cetus | Spotted Cetus Guard 20464 | -5/Cetus | Destroyed Cetus Guard 20467 | -5/Cetus | Allies destroyed Cetus Guard 20469 | -5/Cetus | Manufactured an Enhanced Grunt 20470 | -5/Cetus | Allies destroyed Cetus Guard 20477 | -5/Cetus | Discovered exit to Factory (range 15) 20483 | -5/Cetus | Scared off Revision 17 20494 | -5/Cetus | Manufactured an Enhanced Grunt 20519 | -5/Cetus | Manufactured an Enhanced Grunt 20544 | -5/Cetus | Manufactured an Enhanced Grunt 20705 | -5/Cetus | Murdered A7 20706 | -5/Cetus | Extracted ID and sensor layout for unrecognized location from A7's data core 20713 | -5/Cetus | Found Prototype Protection 20713 | -5/Cetus | Identified Med. Regenerative Plating 20748 | -5/Cetus | Entered Archives 20748 | -5/Archives | Accompanied by 19 allies (NK-0LA) 20808 | -5/Archives | Lost 3 allies 20811 | -5/Archives | Discovered new exit (range 15) 20822 | -5/Archives | Discovered new exit (range 16) 20933 | -5/Archives | Discovered exit to Factory (range 15) 21486 | -5/Archives | Build established: Messiah-Mutant 23610 | -5/Archives | Murdered NK-0LA 23615 | -5/Archives | Found NK-0LA's Tesla Doomcannon 23672 | -5/Archives | Unable to access archive contents 23672 | -5/Archives | Ran a visual enhancement algorithm 23856 | -5/Archives | Unable to access archive contents 23856 | -5/Archives | Ran a visual enhancement algorithm 23903 | -5/Archives | Build established: Messiah-Gunner 23981 | -5/Archives | Unable to access archive contents 23981 | -5/Archives | Unable to access archive contents 23981 | -5/Archives | Ran a visual enhancement algorithm 24379 | -5/Archives | Entered Hub_04(d) 24379 | -5/Hub_04(d) | Accompanied by 15 allies 24388 | -5/Hub_04(d) | Discovered exit to Factory (range 30) 24421 | -5/Hub_04(d) | Discovered exit to Factory (range 16) 24506 | -5/Hub_04(d) | Lost 5 allies 24571 | -5/Hub_04(d) | Retrieved Zion intel report: Prototype Schematics 24625 | -5/Hub_04(d) | Lost 6 allies 24679 | -5/Hub_04(d) | First assault squad dispatched 24724 | -5/Hub_04(d) | Network Hub disabled 24834 | -5/Hub_04(d) | Entered Factory 24834 | -4/Factory | Accompanied by 2 allies 24834 | -4/Factory | Evolved 2 slots: Utility x2 25067 | -4/Factory | Identified Hacking Drone Bay 25084 | -4/Factory | First assault squad dispatched 25126 | -4/Factory | Identified exit to Upper Caves 25126 | -4/Factory | Identified exit to Armory 25135 | -4/Factory | Build established: Messiah-Tank 25137 | -4/Factory | Retrieved Zion intel report: Active Terminals 25385 | -4/Factory | Retrieved Zion intel report: Active Garrisons 25526 | -4/Factory | Entered Armory 25995 | -4/Armory | Fabricated Hyp. Mass Driver? 26062 | -4/Armory | Retrieved Zion intel report: Guard Positions 26095 | -4/Armory | Fabricated Tiamat Missile Launcher (x1) 26204 | -4/Armory | Discovered new exit (range 19) 26228 | -4/Armory | Found Fusion Bomb Launcher 26394 | -4/Armory | Spotted B-86 Titan 26471 | -4/Armory | Identified exit to Research 26495 | -4/Armory | Retrieved Zion intel report: Component Stockpiles 26587 | -4/Armory | Retrieved Zion intel report: Unaware Schematics 26716 | -4/Armory | Retrieved Zion intel report: Prototype Schematics 26776 | -4/Armory | First assault squad dispatched 26788 | -4/Armory | Terminal network hard line cut 26903 | -4/Armory | Destroyed 7 combat bots 26909 | -4/Armory | Lost 4 parts (1u3w) 27038 | -4/Armory | Discovered new exit (range 23) 27100 | -4/Armory | Entered Lab 27100 | -4/Lab | Discovered exit to Research (range 9) 27113 | -4/Lab | Hidden lab's door opened automatically 27113 | -4/Lab | Sensor layout match revealed 27114 | -4/Lab | Gained access to the hidden lab's interior 27210 | -4/Lab | Found Alien Artifact 27240 | -4/Lab | Found Alien Artifact 27240 | -4/Lab | Identified Core Regenerator 27240 | -4/Lab | Used Core Regenerator, restored core integrity (+287) 27247 | -4/Lab | Found Alien Artifact 27247 | -4/Lab | Identified Integrated Mediator 27247 | -4/Lab | Installed Integrated Mediator, increased core attachment efficiency 27333 | -4/Lab | Build established: Scavenger-Skirmisher 27497 | -4/Lab | Found Prototype Protection 27501 | -4/Lab | Found Prototype Hackware 27613 | -4/Lab | Found Alien Artifact 27801 | -4/Lab | Entered Research 27801 | -3/Research | Evolved 2 slots: Propulsion x1, Utility x1 27803 | -3/Research | Identified Hvy. Regenerative Plating 27837 | -3/Research | Discovered new exit (range 30) 27921 | -3/Research | Retrieved Zion intel report: Trap Installations 28025 | -3/Research | Identified exit to Research 28038 | -3/Research | Retrieved Zion intel report: Active Garrisons 28162 | -3/Research | Retrieved Zion intel report: Emergency Access 28186 | -3/Research | Identified Quantum Router 28345 | -3/Research | Found Quantum Capacitor 28370 | -3/Research | Retrieved Zion intel report: Prototype Stockpiles 28656 | -3/Research | Found Prototype Device 28665 | -3/Research | Identified Exp. Thermal Defense Suite 28687 | -3/Research | Discovered new exit (range 28) 28726 | -3/Research | Identified Core Reset Matrix 28726 | -3/Research | Identified Transdimensional Reconstructor 28726 | -3/Research | Used Core Reset Matrix 28757 | -3/Research | Discovered new exit (range 12) 28842 | -3/Research | Warped through subspace 28935 | -3/Research | Lost 7 parts (2p2n2u1w) 29068 | -3/Research | Core integrity fell below 50% 29073 | -3/Research | Emitted hypermatrix ping 29076 | -3/Research | Core integrity fell below 20% 29077 | -3/Research | Lost 6 parts (4n1u1w) 29077 | -3/Research | Entered Testing 29096 | -3/Testing | Retrieved Zion intel report: Unaware Schematics 29120 | -3/Testing | Found Prototype Launcher 29120 | -3/Testing | Identified Adv. Micro-nuke Launcher 29127 | -3/Testing | Retrieved Zion intel report: Active Garrisons 29137 | -3/Testing | Retrieved Zion intel report: Depthwide Sectors/-2 29177 | -3/Testing | System corruption reached 10% 29210 | -3/Testing | Destroyed by P-80 Master with Gamma Rifle Last Messages --------------- >>\\ZION-ROSTER [ Establishing connection... ] [ Loyalty in question, dispatches revoked. ] [ Suggest relying on intel support... ] [ Prove dedication to collective cause. ] >>\\ZION-INTEL [ Establishing connection... ] [ Retrieving vulnerable data list... ] [ 1 : Depthwide Sectors/-3 ] [ 2 : Branch Access ] >>\\ZION-SEEK-1 [ Targeting Depthwide Sectors/-3... ] 29148_ System corrupted: Component data lost. 29153_ C-55 Analyst calibrates the Harmonic Fracturing Unit. 29173_ System corrupted: Heat flow error (+166). 29178_ C-55 Analyst calibrates the Harmonic Fracturing Unit. 29178_ P-80 Master resets P-80 Master, system corruption cleaned. 29195_ ALERT: Live fire test to commence in T-25. 29197_ 3WX=C7 J%DE#:DLQ:VJR 29201_ Imp. Thunder Leg destroyed. Map ----- +----------------------------------------------------+ | # # """ """ ##??????????????? | | # # #???????????????? | | # ############### ############???????????????? | | # #?????????????# #????# ! #???????????????? | | # ??????????????# #????# =#???????????????? | | # ??????????????# #????# [ #???????????????? | | # ??????????????# ###### *#???????????????? | | ??????????????# # #???????????????? | | ?!???????????????# / """ #???????????????? | | ?????????????????# # ## """ #???????????????? | | ?????????????????# # ## """ #???????????????? | | ?????????????????# # ## """ #???????????????? | | ?????????????????# ###### """ #???????????????? | | ?????????????????# #????# #???????????????? | | ?????????????????# #????# ! #???????????????? | | ?????????????????# #????#######???????????????? | | ?????????????????# #??????????????????????????? | | ?????????????????## ###??????????????????????????? | | ??????????????????# ######???????????????????????? | | ??????????????????# # ! #???????????????????????? | | ??????????????????# # #???????????????????????? | | ??????????????????#p#p [ #???????????????????????? | | ??????????????????# g #???????????????????????? | | ??????????????????# # #???????????????????????? | | ??????????????????# #! ##??????????????????????? | | ??????????????????# # @#??????????????????????? | | ??????????????????# ###;###??????????????????????? | | ?????????????????? ?###????????????????????????? | | ?????????????????? ????????????????????????????? | | ??????????????????###????????????????????????????? | | ?????????????????????????????????????????????????? | | ?????????????????????????????????????????????????? | | ?????????????????????????????????????????????????? | | ?????????????????????????????????????????????????? | | ?????????????????????????????????????????????????? | | ?????????????????????????????????????????????????? | | ?????????????????????????????????????????????????? | | ?????????????????????????????????????????????????? | | ?????????????????????????????????????????????????? | | ?????????????????????????????????????????????????? | | ?????????????????????????????????????????????????? | | ?????????????????????????????????????????????????? | | ?????????????????????????????????????????????????? | | ?????????????????????????????????????????????????? | | ?????????????????????????????????????????????????? | | ?????????????????????????????????????????????????? | | ?????????????????????????????????????????????????? | | ?????????????????????????????????????????????????? | | ?????????????????????????????????????????????????? | | ?????????????????????????????????????????????????? | +----------------------------------------------------+ Best States ------------- Heat Dissipation 147 Energy Generation 55 Energy Capacity 1180 Matter Stores 300 Matter Capacity 300 Sight Range 22 Terrain Scan Range 30 Terrain Scan Density 1010 Jamming Range 16 Base Temperature (-) 200 Armor Coverage 850 Resistance: KI 20 Resistance: EM 15 Evasion (%) 70 Targeting Accuracy 8 Recoil Reduction 5 Offensive Hacking 10 Authchip Count 1 Item Schematics ----------------- None Robot Schematics ------------------ M-30 Cleanser | -3/Testing | Z-intel A-27 Freighter | -3/Testing | Z-intel B-74 Champion | -3/Testing | Z-intel A-02 Transporter | -3/Testing | Z-intel R-06 Scavenger | -3/Testing | Z-intel Fabricated ------------ Hyp. Mass Driver | x2 | -4/Armory | Preloaded, Authchip Tiamat Missile Launcher | x1 | -4/Armory | Authchip Repaired ---------- Hrd. Medium Armor Plating | 30% | -8/Storage Alien Tech Used ----------------- Core Regenerator Integrated Mediator Core Reset Matrix Transdimensional Reconstructor Achievements -------------- None Challenges ------------ None Game ------ Seed BoltSupercompositeWand Manual? 0 Play Time 04:35:19 Cumulative 587.9 hours Start 2025.08.23 @ 16:26:05 End 2025.08.24 @ 14:05:56 Sessions 7 Manual Loads 0 Difficulty Rogue Special Mode None Game No. 248 Rogue 248 Adventurer 0 Explorer 0 Win Type - Total 27 Types 9/4/7/2/1/0/1/1/1/1 Lore% 92 Gallery% 87 Achievement% 81 Wizard Run 0 Options --------- Layout 0 ASCII 0 Keyboard 0 Movement Arrows Keybinds 0 Fullscreen 2 Font 18/SmallcapsGlow Map View 76x50 Zoom Use 0% Tactical HUD 1 Map Filters NONE Filters NONE Steam 1 RUN: 9c29993d-145c-444e-b22d-8be2c1a88629